[Event "FIDE World Cup O10-A 2024"]
[Site "Batumi"]
[Date "2024.06.23"]
[Round "1.9"]
[White "Vyom Malhotra"]
[Black "Eshkol, Idan"]
[Result "1-0"]
[ECO "A07"]
[WhiteElo "1803"]
[BlackElo "1544"]
[Annotator "NA RC"]
[PlyCount "75"]
[EventDate "2024.06.23"]
[EventType "swiss"]
[EventCountry "GEO"]
[SourceTitle "playchess.com"]
[Source "ChessBase"]
[SourceQuality "1"]
[TimeControl "5400+30"]

1. Nf3 {[%emt 0:00:07]} d5 {[%emt 0:00:17]} 2. b3 {[%emt 0:00:13]} Nf6 {[%emt 0:00:22]} 3. Bb2 {[%emt 0:00:15]} Bf5 {[%emt 0:00:39]} 4. g3 {[%emt 0:00:38]} e6 {[%emt 0:01:32]} 5. Bg2 {[%emt 0:00:19]} Nbd7 {[%emt 0:01:10]} 6. O-O {[%emt 0:00:27]} c5 {[%emt 0:05:45]} 7. d3 {[%emt 0:00:31]} Qc7 {[%emt 0:02:34]} 8. Re1 {[%emt 0:04:25]} Be7 {[%emt 0:10:51]} 9. Nbd2 {[%emt 0:02:20]} Bg6 {[%emt 0:02:45]} 10. e4 {[%emt 0:02:43]} d4 {[%emt 0:00:58]} 11. a4 {[%emt 0:01:17]} e5 {[%emt 0:02:34]} 12. Nh4 {[%emt 0:01:13]} Bh5 {[%emt 0:01:47]} 13. f3 {[%emt 0:02:17]} O-O {[%emt 0:06:22]} 14. Nf5 {[%emt 0:02:22]} Bd8 {[%emt 0:02:24]} 15. Nc4 {[%emt 0:02:05]} Nb6 {[%emt 0:01:44]} 16. Na3 {[%emt 0:04:01]} a5 {[%emt 0:03:29]} 17. Nb5 {[%emt 0:00:28]} Qd7 {[%emt 0:00:16]} 18. Ba3 {[%emt 0:02:49]} Qc6 {[%emt 0:02:08]} 19. Qd2 {[%emt 0:01:23]} Bg6 {[%emt 0:02:02]} 20. Re2 {[%emt 0:05:46]} Re8 {[%emt 0:02:13]} 21. Bh3 {[%emt 0:12:56]} Nc8 {[%emt 0:23:32]} 22. Rf1 {[%emt 0:01:49]} Bxf5 {[%emt 0:01:25]} 23. Bxf5 {[%emt 0:00:08]} Ne7 {[%emt 0:01:14]} 24. Bh3 {[%emt 0:01:27]} Ng6 {[%emt 0:02:11]} 25. Rg2 {[%emt 0:01:43]} Bc7 {[%emt 0:06:08]} 26. Nxc7 {[%emt 0:07:55]} Qxc7 {[%emt 0:00:07]} 27. f4 {[%emt 0:00:34]} Ra6 {[%emt 0:06:17]} 28. f5 {[%emt 0:00:48]} Nf8 {[%emt 0:01:16]} 29. g4 {[%emt 0:00:56]} h6 {[%emt 0:00:44]} 30. g5 {[%emt 0:01:45]} Nh5 {[%emt 0:01:16]} 31. gxh6 {[%emt 0:00:09]} g6 {[%emt 0:00:24]} 32. Qf2 {[%emt 0:08:15]} Nf4 {[%emt 0:00:53]} 33. Rg3 {[%emt 0:00:12]} Kh7 {[%emt 0:00:42]} 34. Bc1 {[%emt 0:00:06]} g5 {[%emt 0:00:21]} 35. Bxf4 {[%emt 0:00:48]} gxf4 {[%emt 0:00:26]} 36. Rg7+ {[%emt 0:00:09]} Kxh6 {[%emt 0:01:33]} 37. Rg4 {[%emt 0:00:27]} Nh7 {[%emt 0:00:50]} 38. Qh4# {[%emt 0:00:11]} 1-0

[Event "FIDE World Cup O10-A 2024"]
[Site "Batumi"]
[Date "2024.06.23"]
[Round "1.10"]
[White "Dien James"]
[Black "Mrozowski, Nikodem"]
[Result "0-1"]
[ECO "B23"]
[WhiteElo "1419"]
[BlackElo "1776"]
[Annotator "NA RC"]
[PlyCount "68"]
[EventDate "2024.06.23"]
[EventType "swiss"]
[EventCountry "GEO"]
[SourceTitle "playchess.com"]
[Source "ChessBase"]
[SourceQuality "1"]
[TimeControl "5400+30"]

1. e4 {[%emt 0:00:02]} c5 {[%emt 0:00:06]} 2. Nc3 {[%emt 0:00:08]} Nc6 {[%emt 0:00:16]} 3. f4 {[%emt 0:00:10]} g6 {[%emt 0:00:10]} 4. Nf3 {[%emt 0:00:10]} Bg7 {[%emt 0:00:09]} 5. Bb5 {[%emt 0:00:57]} Nd4 {[%emt 0:00:20]} 6. O-O {[%emt 0:00:12]} a6 {[%emt 0:01:58]} 7. Be2 {[%emt 0:01:14]} e6 {[%emt 0:00:43]} 8. d3 {[%emt 0:00:31]} Ne7 {[%emt 0:01:05]} 9. Na4 {[%emt 0:04:14]} b5 {[%emt 0:05:23]} 10. Nxc5 {[%emt 0:11:01]} Qb6 {[%emt 0:01:06]} 11. Be3 {[%emt 0:17:26]} Qxc5 {[%emt 0:07:21]} 12. Kh1 {[%emt 0:00:56]} Qb4 {[%emt 0:32:40]} 13. c3 {[%emt 0:03:22]} Qxb2 {[%emt 0:00:26]} 14. cxd4 {[%emt 0:00:10]} d5 {[%emt 0:00:27]} 15. e5 {[%emt 0:01:15]} Nf5 {[%emt 0:02:19]} 16. Qd2 {[%emt 0:01:48]} Qa3 {[%emt 0:05:39]} 17. Bf2 {[%emt 0:00:48]} h5 {[%emt 0:02:10]} 18. h4 {[%emt 0:02:31]} Bf8 {[%emt 0:37:12]} 19. Qc2 {[%emt 0:01:42]} Bd7 {[%emt 0:00:00]} 20. Qb3 {[%emt 0:02:49]} Qa5 {[%emt 0:00:00]} 21. Be1 {[%emt 0:08:25]} Qd8 {[%emt 0:00:00]} 22. Bf2 {[%emt 0:01:06]} Be7 {[%emt 0:00:00]} 23. Rac1 {[%emt 0:04:29]} Nxh4 {[%emt 0:00:00]} 24. Nxh4 {[%emt 0:03:41]} Bxh4 {[%emt 0:00:00]} 25. g3 {[%emt 0:01:00]} Be7 {[%emt 0:00:00]} 26. Qc3 {[%emt 0:02:07]} Rc8 {[%emt 0:00:00]} 27. Qb3 {[%emt 0:00:09]} h4 {[%emt 0:00:00]} 28. gxh4 {[%emt 0:00:58]} Bxh4 {[%emt 0:00:00]} 29. Kg2 {[%emt 0:00:09]} Bxf2 {[%emt 0:00:00]} 30. Rxc8 {[%emt 0:00:33]} Bxc8 {[%emt 0:00:00]} 31. Rxf2 {[%emt 0:00:51]} Qh4 {[%emt 0:00:00]} 32. Rf3 {[%emt 0:03:36]} Qh1+ {[%emt 0:00:00]} 33. Kf2 {[%emt 0:01:28]} Rh2+ {[%emt 0:00:00]} 34. Ke3 {[%emt 0:00:10]} Qc1# {[%emt 0:08:00]} 0-1

[Event "FIDE World Cup O10-A 2024"]
[Site "Batumi"]
[Date "2024.06.23"]
[Round "1.11"]
[White "Ramesan, Raunak Amit"]
[Black "TURKI, YOUSEF HATTAN A"]
[Result "1-0"]
[ECO "C02"]
[WhiteElo "1772"]
[BlackElo "1401"]
[Annotator "NA RC"]
[PlyCount "29"]
[EventDate "2024.06.23"]
[EventType "swiss"]
[EventCountry "GEO"]
[SourceTitle "playchess.com"]
[Source "ChessBase"]
[SourceQuality "1"]
[TimeControl "5400+30"]

1. e4 {[%emt 0:00:10]} e6 {[%emt 0:00:02]} 2. d4 {[%emt 0:00:26]} d5 {[%emt 0:00:01]} 3. e5 {[%emt 0:00:29]} c5 {[%emt 0:00:04]} 4. c3 {[%emt 0:00:41]} Nc6 {[%emt 0:00:37]} 5. Nf3 {[%emt 0:00:27]} cxd4 {[%emt 0:00:13]} 6. cxd4 {[%emt 0:00:29]} Bb4+ {[%emt 0:00:03]} 7. Nc3 {[%emt 0:02:56]} Nge7 {[%emt 0:00:11]} 8. Bd3 {[%emt 1:28:52]} Bd7 {[%emt 1:33:19]} 9. a3 {[%emt 0:00:00]} Bxc3+ {[%emt 0:00:00]} 10. bxc3 {[%emt 0:00:00]} h6 {[%emt 0:00:00]} 11. Bd2 {[%emt 0:00:00]} O-O {[%emt 0:00:00]} 12. Qc1 {[%emt 0:00:00]} Ng6 {[%emt 0:00:00]} 13. Bxh6 {[%emt 0:00:00]} gxh6 {[%emt 0:00:00]} 14. Qxh6 {[%emt 0:00:00]} Nce7 {[%emt 0:00:00]} 15. Ng5 {[%emt 0:03:30]} 1-0

[Event "FIDE World Cup O10-A 2024"]
[Site "Batumi"]
[Date "2024.06.23"]
[Round "1.12"]
[White "Wee, Yu Xi Lyndon"]
[Black "Ismailov, Omarbek"]
[Result "0-1"]
[ECO "B45"]
[WhiteElo "1408"]
[BlackElo "1716"]
[Annotator "NA RC"]
[PlyCount "45"]
[EventDate "2024.06.23"]
[EventType "swiss"]
[EventCountry "GEO"]
[SourceTitle "playchess.com"]
[Source "ChessBase"]
[SourceQuality "1"]
[TimeControl "5400+30"]

1. e4 {[%emt 0:00:02]} c5 {[%emt 0:00:25]} 2. Nf3 {[%emt 0:00:09]} Nc6 {[%emt 0:00:21]} 3. d4 {[%emt 0:00:09]} cxd4 {[%emt 0:00:22]} 4. Nxd4 {[%emt 0:00:11]} Nf6 {[%emt 0:00:23]} 5. Nc3 {[%emt 0:00:13]} e6 {[%emt 0:00:39]} 6. Bc4 {[%emt 0:00:25]} Bb4 {[%emt 0:00:17]} 7. Qd3 {[%emt 0:03:01]} Ne5 {[%emt 0:02:11]} 8. Qe2 {[%emt 0:00:46]} Qc7 {[%emt 0:00:40]} 9. Ndb5 {[%emt 0:01:07]} Qc6 {[%emt 0:05:57]} 10. Bf4 {[%emt 0:00:56]} Nxc4 {[%emt 0:02:45]} 11. a3 {[%emt 0:00:54]} Bxc3+ {[%emt 0:00:22]} 12. bxc3 {[%emt 0:00:06]} Qxb5 {[%emt 0:00:31]} 13. a4 {[%emt 0:01:58]} Qc6 {[%emt 0:00:16]} 14. f3 {[%emt 0:00:31]} O-O {[%emt 0:01:23]} 15. O-O {[%emt 0:01:15]} d5 {[%emt 0:01:48]} 16. e5 {[%emt 0:01:26]} Nd7 {[%emt 0:00:24]} 17. Bg3 {[%emt 0:02:03]} Qa6 {[%emt 0:02:33]} 18. f4 {[%emt 0:01:09]} Nc5 {[%emt 0:02:16]} 19. Bh4 {[%emt 0:01:59]} Ne4 {[%emt 0:01:34]} 20. Qg4 {[%emt 0:00:38]} Ne3 {[%emt 0:00:30]} 21. Qf3 {[%emt 0:01:00]} Nxf1 {[%emt 0:00:21]} 22. Rxf1 {[%emt 0:00:06]} Nd2 {[%emt 0:00:08]} 23. Qg3 {[%emt 0:00:58]} 0-1